bitfinex/quotes_BTCUSD_20250825
["timestamp","ask_amount","ask_price","bid_price","bid_amount"]
[1756108719854,2.18901519,111720.0,111710.0,5e-05]
[1756108720958,2.16100194,111720.0,111710.0,5e-05]
[1756108722270,1.98843169,111720.0,111710.0,5e-05]
[1756108722491,2.57659291,111720.0,111710.0,5e-05]
[1756108722706,7.30400008,111720.0,111710.0,5e-05]
[1756108724267,7.32793899,111720.0,111710.0,5e-05]
[1756108724728,7.07142934,111720.0,111710.0,5e-05]
[1756108724948,7.24086934,111720.0,111710.0,5e-05]
[1756108725911,7.21285609,111720.0,111710.0,5e-05]
[1756108726138,7.19836814,111720.0,111710.0,5e-05]
[1756108726524,7.2268968,111720.0,111710.0,5e-05]
[1756108726758,7.31376645,111720.0,111710.0,5e-05]
[1756108727827,7.31845102,111720.0,111710.0,5e-05]
[1756108728906,7.31377102,111720.0,111710.0,5e-05]
[1756108729346,7.14433102,111720.0,111710.0,5e-05]
[1756108729558,7.31369102,111720.0,111710.0,5e-05]
[1756108729770,7.31365102,111720.0,111710.0,5e-05]
[1756108730033,7.25179067,111720.0,111710.0,5e-05]
[1756108730251,7.08247067,111720.0,111710.0,5e-05]
[1756108730464,7.05421851,111720.0,111710.0,5e-05]
[1756108730674,7.08223176,111720.0,111710.0,5e-05]
[1756108730882,6.91291176,111720.0,111710.0,5e-05]
[1756108731088,7.08219176,111720.0,111710.0,5e-05]
[1756108731293,7.29747176,111720.0,111710.0,5e-05]
[1756108731506,7.29347176,111720.0,111710.0,5e-05]
[1756108731687,7.38782176,111720.0,111710.0,5e-05]
[1756108731947,7.39182176,111720.0,111710.0,5e-05]
[1756108732351,7.38782176,111720.0,111710.0,5e-05]
[1756108732547,7.40527078,111720.0,111710.0,5e-05]
[1756108732959,7.40027078,111720.0,111710.0,5e-05]
[1756108733163,7.40327078,111720.0,111710.0,5e-05]
[1756108734023,2.25092248,111700.0,111690.0,0.00319]
[1756108734234,2.6198496,111700.0,111690.0,0.00522]
[1756108734471,2.38042553,111700.0,111690.0,0.00522]
[1756108734688,1.91945936,111700.0,111690.0,0.00522]
[1756108735120,1.93690838,111700.0,111690.0,0.00522]
[1756108735324,1.93690838,111700.0,111690.0,0.00536454]
[1756108735943,1.84990155,111700.0,111690.0,0.00536454]
[1756108736172,1.84990912,111700.0,111690.0,0.00536454]
[1756108738036,1.87968505,111700.0,111690.0,0.00536454]
[1756108738868,2.46784627,111700.0,111690.0,0.00536454]
[1756108739498,2.46784627,111700.0,111690.0,0.01536454]
[1756108739901,2.11676827,111700.0,111690.0,0.01536454]
[1756108740133,2.20363792,111700.0,111690.0,0.01536454]
[1756108740347,2.11676827,111700.0,111690.0,0.01536454]
[1756108740567,1.1505801,111700.0,111690.0,0.01536454]
[1756108740779,0.7414699,111700.0,111690.0,0.01536454]
[1756108741006,1.49867112,111700.0,111690.0,0.01536454]
[1756108741259,1.52844705,111700.0,111690.0,0.01536454]
[1756108743821,2.11660827,111700.0,111690.0,0.01536454]
[1756108744683,2.1166375,111700.0,111690.0,0.01536454]
[1756108744894,1.52847628,111700.0,111690.0,0.01536454]
[1756108745326,1.52847653,111700.0,111690.0,0.01536454]
[1756108745535,1.54196274,111700.0,111690.0,0.01536454]
[1756108746441,1.37292274,111700.0,111690.0,0.01536454]
[1756108746667,1.54180274,111700.0,111690.0,0.01536454]
[1756108747063,1.54080274,111700.0,111690.0,0.01536454]
[1756108748387,1.43401117,111700.0,111690.0,0.01536454]
[1756108750193,1.42683679,111700.0,111690.0,0.01536454]
[1756108750408,1.39694086,111700.0,111690.0,0.01536454]
[1756108751839,1.15282083,111700.0,111690.0,0.01536454]
[1756108754332,1.52261985,111700.0,111690.0,0.01536454]
[1756108754533,1.52262999,111700.0,111690.0,0.01536454]
[1756108754937,1.52262999,111700.0,111690.0,0.01014454]
[1756108755210,1.52262968,111700.0,111690.0,0.01014454]
[1756108755340,1.50598854,111700.0,111690.0,0.01214454]
[1756108755546,1.33722854,111700.0,111690.0,0.01507454]
[1756108755745,1.50582854,111700.0,111690.0,0.01507454]
[1756108756468,1.50578854,111700.0,111690.0,0.01507454]
[1756108758784,0.73558111,111700.0,111690.0,0.01507454]
[1756108758983,1.50570854,111700.0,111690.0,0.01507454]
[1756108759207,0.73558111,111700.0,111690.0,0.01507454]
[1756108759410,1.50570854,111700.0,111690.0,0.01507454]
[1756108760307,0.90406111,111700.0,111690.0,0.01507454]
[1756108760521,1.50570854,111700.0,111690.0,0.01507454]
[1756108761268,1.50570854,111700.0,111690.0,0.01014454]
[1756108762087,1.50570854,111700.0,111690.0,0.01307454]
[1756108762286,1.50570854,111700.0,111690.0,0.01507454]
[1756108763246,1.50562854,111700.0,111690.0,0.01507454]
[1756108764369,1.52481385,111700.0,111690.0,0.01014454]
[1756108764587,2.17997032,111700.0,111690.0,0.01014454]
[1756108764812,1.57832289,111700.0,111690.0,0.01014454]
[1756108765021,2.12646128,111700.0,111690.0,0.01014454]
[1756108766702,2.22646128,111700.0,111690.0,0.01014454]
[1756108766921,2.23270408,111700.0,111690.0,0.01014454]
[1756108767570,2.22645938,111700.0,111690.0,0.01014454]
[1756108767788,2.23045938,111700.0,111690.0,0.01014454]
[1756108768247,2.22845938,111700.0,111690.0,0.01014454]
[1756108768464,1.02516452,111700.0,111690.0,0.01014454]
[1756108768688,2.23045938,111700.0,111690.0,0.01014454]
[1756108769113,1.62857195,111700.0,111690.0,0.01014454]
[1756108769536,1.62657195,111700.0,111690.0,0.01014454]
[1756108769749,1.52857195,111700.0,111690.0,0.01014454]
[1756108769957,1.52857195,111700.0,111690.0,0.01507454]
[1756108770824,1.52857195,111700.0,111690.0,0.01307454]
[1756108771451,1.36041195,111700.0,111690.0,0.01307454]
[1756108771706,1.52853195,111700.0,111690.0,0.01307454]
[1756108772122,1.52849195,111700.0,111690.0,0.01307454]
[1756108773618,1.52849195,111700.0,111690.0,0.01014454]
[1756108774043,0.92684452,111700.0,111690.0,0.01507454]
[1756108774273,1.52849015,111700.0,111690.0,0.01507454]
[1756108774478,1.36041015,111700.0,111690.0,0.01507454]
[1756108774684,1.49863422,111700.0,111690.0,0.01507454]
[1756108774895,1.31145348,111700.0,111690.0,0.01507454]
[1756108775108,1.47945348,111700.0,111690.0,0.01507454]
[1756108777362,1.4794536,111700.0,111690.0,0.01507454]
[1756108778208,1.50924081,111700.0,111690.0,0.01507454]
[1756108782045,1.33018979,111700.0,111690.0,0.01507454]
[1756108782268,1.30040258,111700.0,111690.0,0.01507454]
[1756108783510,1.29668258,111700.0,111690.0,0.01507454]
[1756108783917,0.6947525,111700.0,111690.0,0.01507454]
[1756108784131,1.21319518,111700.0,111690.0,0.01507454]
[1756108784532,0.86487645,111700.0,111690.0,0.01507454]
[1756108784983,1.20487645,111700.0,111690.0,0.01507454]
[1756108785379,1.20287645,111700.0,111690.0,0.01507454]
[1756108785608,1.20087645,111700.0,111690.0,0.01507454]
[1756108785794,1.20187645,111700.0,111690.0,0.01507454]
[1756108786027,0.60022902,111700.0,111690.0,0.01507454]
[1756108786152,1.20187645,111700.0,111690.0,0.01507454]
[1756108788714,0.67966409,111730.0,111690.0,0.70360672]
[1756108789022,0.61672243,111720.0,111700.0,0.08894475]
[1756108789263,0.76916743,111710.0,111690.0,0.16739496]
[1756108789437,0.76916743,111700.0,111690.0,0.09702929]
[1756108789643,0.76916743,111700.0,111690.0,0.09903929]
[1756108789847,0.76916743,111700.0,111690.0,0.10209929]
[1756108790492,0.76916743,111700.0,111690.0,0.01521454]
[1756108791374,0.76916743,111700.0,111690.0,0.01721454]
[1756108792105,0.16752,111700.0,111690.0,0.01721454]
[1756108792345,0.76916743,111700.0,111690.0,0.01721454]
[1756108792588,0.76916743,111700.0,111690.0,0.01821454]
[1756108794055,0.85549645,111700.0,111690.0,0.01821454]
[1756108794297,0.88240945,111700.0,111690.0,0.01821454]
[1756108794556,0.71488945,111700.0,111690.0,0.01621454]
[1756108794783,0.263153,111700.0,111690.0,0.01521454]
[1756108795469,0.263153,111700.0,111690.0,0.01621454]
[1756108795680,0.263073,111700.0,111690.0,0.01621454]
[1756108796582,0.23616,111700.0,111690.0,0.10309929]
[1756108797053,0.16724,111700.0,111690.0,0.17604115]
[1756108797295,0.16724,111700.0,111690.0,0.17380282]
[1756108797506,0.16724,111700.0,111690.0,0.10309929]
[1756108797659,0.76888743,111700.0,111690.0,0.10309929]
[1756108798089,0.78633645,111700.0,111690.0,0.01621454]
[1756108798490,0.80460145,111700.0,111690.0,0.01621454]
[1756108798669,0.77094635,111700.0,111690.0,0.01621454]
[1756108799386,1.11094635,111700.0,111690.0,0.01420454]
[1756108799603,1.11094635,111700.0,111690.0,0.01621454]
[1756108800492,1.14452145,111700.0,111690.0,0.01420454]
[1756108800706,1.14452145,111700.0,111690.0,0.01114454]
[1756108801184,0.94164743,111690.0,111650.0,0.68695406]
[1756108801384,0.95909645,111690.0,111680.0,0.00201]
[1756108801594,1.12816645,111690.0,111660.0,0.08688475]
[1756108801807,0.60164743,111680.0,111660.0,0.08688475]
[1756108802017,1.05485245,111690.0,111670.0,0.00201]
[1756108802226,0.16704,111680.0,111670.0,0.08889475]
[1756108802493,0.435756,111690.0,111670.0,0.74131223]
[1756108802719,0.4484,111710.0,111680.0,0.60388596]
[1756108802936,0.193948,111720.0,111700.0,0.00201]
[1756108803185,0.193948,111720.0,111700.0,0.09113288]
[1756108803411,0.026908,111720.0,111710.0,0.08994475]
[1756108803637,0.167,111740.0,111710.0,0.69807804]
[1756108803868,0.09333728,111750.0,111720.0,0.6026311]
[1756108804088,0.23343328,111750.0,111740.0,0.00201]
[1756108804345,0.00014451,111750.0,111740.0,0.09195475]
[1756108804561,0.00014451,111750.0,111740.0,0.70503499]
[1756108804783,0.00014451,111750.0,111740.0,0.70279766]
[1756108805012,0.00014451,111750.0,111740.0,0.10115023]
[1756108805229,0.00014451,111750.0,111740.0,0.70279766]
[1756108805437,0.00014451,111750.0,111740.0,0.10115023]
[1756108805863,0.00014451,111750.0,111740.0,0.10315023]
[1756108806086,0.00014451,111750.0,111740.0,0.10515023]
[1756108806590,0.00213451,111750.0,111740.0,0.10515023]
[1756108806819,0.77301159,111750.0,111740.0,0.01119548]
[1756108807048,1.11622159,111750.0,111740.0,0.002]
[1756108807274,1.2951925,111750.0,111740.0,0.002]
[1756108807500,0.35744902,111730.0,111700.0,0.07247409]
[1756108807729,0.01744902,111710.0,111700.0,0.08994475]
[1756108807944,0.01744902,111710.0,111690.0,0.00306]
[1756108807945,0.60915708,111710.0,111690.0,0.00306]
[1756108808174,0.60915708,111710.0,111670.0,0.16685263]
[1756108808175,0.35943902,111710.0,111670.0,0.16685263]
[1756108808391,0.35744902,111710.0,111700.0,0.00507]
[1756108808607,0.35744902,111710.0,111690.0,0.08688475]
[1756108808608,1.11278708,111710.0,111690.0,0.08688475]
[1756108808856,1.11278708,111710.0,111700.0,0.00201]
[1756108809072,1.11278708,111710.0,111700.0,0.00507]
[1756108809073,0.55120002,111710.0,111700.0,0.00507]
[1756108809949,1.13976808,111710.0,111700.0,0.00201]
[1756108810414,0.55120002,111710.0,111700.0,0.00201]
[1756108810642,0.38436002,111710.0,111700.0,0.00201]
[1756108810905,0.55116002,111710.0,111700.0,0.00201]
[1756108811108,0.366911,111710.0,111700.0,0.08989475]
[1756108811332,0.533671,111710.0,111700.0,0.09311475]
[1756108811790,0.533671,111710.0,111700.0,0.001]
[1756108811791,0.55615002,111710.0,111700.0,0.001]
[1756108812042,0.55318002,111710.0,111700.0,0.011]
[1756108812246,1.14265808,111710.0,111670.0,0.09174514]
[1756108812468,1.14265808,111710.0,111680.0,0.08688475]
[1756108812741,0.58947806,111700.0,111680.0,0.08688475]
[1756108813360,0.00206,111690.0,111680.0,0.08902475]
[1756108813577,0.16874,111690.0,111680.0,0.08902475]
[1756108813800,0.16874,111690.0,111680.0,0.00214]
[1756108814050,0.77566708,111690.0,111670.0,8.63e-05]
[1756108814265,0.18915902,111690.0,111670.0,8.63e-05]
[1756108814475,0.77566708,111690.0,111670.0,8.63e-05]
[1756108814725,0.18618902,111690.0,111650.0,0.02678064]
[1756108814931,0.58947806,111680.0,111660.0,0.08688475]
[1756108815151,0.00206,111670.0,111660.0,0.08688475]
[1756108815414,0.1687,111670.0,111660.0,0.08688475]
[1756108815623,0.17167,111670.0,111640.0,0.06889]
[1756108815845,0.17167,111670.0,111660.0,0.00214]
[1756108816058,0.75611806,111680.0,111660.0,0.00214]
[1756108816275,0.16961,111680.0,111660.0,0.00214]
[1756108816487,0.16957,111680.0,111660.0,0.00214]
[1756108816770,0.16957,111680.0,111660.0,0.00437893]
[1756108817406,0.16957,111680.0,111660.0,0.00214]
[1756108817623,0.16957,111680.0,111660.0,0.00314]
[1756108818532,0.16656,111680.0,111660.0,0.09226368]
[1756108818752,0.16656,111680.0,111660.0,0.17053977]
[1756108818965,0.193478,111680.0,111660.0,0.17053977]
[1756108819725,0.026918,111680.0,111670.0,0.08688475]
[1756108819937,4.813e-05,111690.0,111670.0,0.09301348]
[1756108820164,4.813e-05,111690.0,111680.0,0.00223853]
[1756108820384,4.813e-05,111690.0,111680.0,0.09126328]
[1756108820882,0.00507813,111690.0,111680.0,0.08688475]
[1756108821096,4.813e-05,111690.0,111680.0,0.06771322]
[1756108821319,4.813e-05,111690.0,111680.0,0.06995175]
[1756108821542,4.813e-05,111690.0,111680.0,0.06771322]
[1756108821770,0.00210813,111690.0,111680.0,0.06557322]
[1756108822049,4.813e-05,111690.0,111680.0,0.07071322]
[1756108822490,0.00210813,111690.0,111680.0,0.07071322]
[1756108822721,4.813e-05,111690.0,111680.0,0.07371322]
[1756108823641,4.813e-05,111690.0,111680.0,0.07071322]
[1756108823863,4.813e-05,111690.0,111680.0,0.07171322]
[1756108824321,4.813e-05,111690.0,111680.0,0.07071322]
[1756108824783,4.813e-05,111690.0,111680.0,0.07271322]
[1756108826087,4.813e-05,111690.0,111680.0,0.07446322]
[1756108826297,4.813e-05,111690.0,111680.0,0.66097128]
[1756108826722,4.813e-05,111690.0,111680.0,0.07446322]
[1756108826937,4.813e-05,111690.0,111680.0,0.07495175]
[1756108827178,4.813e-05,111690.0,111680.0,1.17180834]
[1756108827395,4.813e-05,111690.0,111680.0,1.16733128]
[1756108827618,4.813e-05,111690.0,111680.0,0.58082322]
[1756108827848,4.813e-05,111690.0,111680.0,0.57903322]
[1756108828062,4.813e-05,111690.0,111680.0,1.16729128]
[1756108828282,1.27612907,111740.0,111680.0,0.57578322]
[1756108828554,0.07195455,111740.0,111710.0,0.58650806]
[1756108828767,0.00297,111730.0,111720.0,0.00223773]
[1756108828976,0.00503,111730.0,111710.0,0.00223793]
[1756108829414,0.00503,111730.0,111700.0,0.75282806]
[1756108829866,0.00503,111730.0,111710.0,0.027903]
[1756108830295,0.00503,111730.0,111710.0,0.61664899]
[1756108830518,0.00114455,111740.0,111720.0,0.59312352]
[1756108830727,0.00014455,111740.0,111720.0,0.59034806]
[1756108830941,0.00311455,111740.0,111720.0,0.00214]
[1756108831159,0.00014455,111740.0,111720.0,0.58864806]
[1756108831601,0.001,111730.0,111720.0,0.58864806]
[1756108831820,0.00311455,111740.0,111720.0,0.58864806]
[1756108832036,0.00311455,111740.0,111730.0,0.08688475]
[1756108832252,0.00517455,111740.0,111730.0,0.08688475]
[1756108832508,0.00717455,111740.0,111730.0,0.08688475]
[1756108832719,0.00517455,111740.0,111730.0,0.08688475]
[1756108832945,0.00617455,111740.0,111730.0,0.08688475]
[1756108833164,0.00617455,111740.0,111710.0,0.026903]
[1756108833165,0.02362357,111740.0,111710.0,0.026903]
[1756108833380,0.00297,111730.0,111710.0,0.11378775]
[1756108833594,0.00206,111720.0,111710.0,0.11592775]
[1756108833830,0.01859357,111740.0,111710.0,0.11592775]
[1756108834036,0.18772357,111740.0,111720.0,0.08688475]
[1756108834241,0.18772357,111740.0,111720.0,0.15774592]
[1756108834444,0.18672357,111740.0,111720.0,0.15774592]
[1756108834681,0.18672357,111740.0,111730.0,0.001]
[1756108835113,0.18878357,111740.0,111730.0,0.001]
[1756108835568,0.18878357,111740.0,111720.0,0.15774592]
[1756108835789,0.18581357,111740.0,111720.0,0.08788475]
[1756108836011,0.00297,111730.0,111720.0,0.08788475]
[1756108836233,0.00503,111730.0,111720.0,0.08688475]
[1756108836476,0.00503,111730.0,111720.0,0.001]
[1756108836931,0.66037806,111730.0,111710.0,0.01]
[1756108837149,0.18352902,111720.0,111710.0,0.01]
[1756108837363,0.77506708,111720.0,111710.0,0.01]
[1756108837609,0.18855902,111720.0,111710.0,0.01]
[1756108837811,0.77506708,111720.0,111710.0,0.01]
[1756108838023,0.18855902,111720.0,111710.0,0.01]
[1756108838244,0.77506708,111720.0,111710.0,0.01]
[1756108839100,0.77506708,111720.0,111680.0,0.08609462]
[1756108839332,0.77209708,111720.0,111680.0,0.17297937]
[1756108839624,0.00293,111710.0,111680.0,0.17297937]
[1756108839848,0.00293,111710.0,111680.0,0.08688475]
[1756108840287,0.0021,111690.0,111680.0,0.08688475]
[1756108840505,0.0021,111690.0,111680.0,0.08888475]
[1756108840717,0.00293,111700.0,111680.0,0.08888475]
[1756108841636,0.77003708,111720.0,111680.0,0.08888475]
[1756108841864,0.0021,111690.0,111680.0,0.1737544]
[1756108842080,0.0021,111690.0,111680.0,0.08688475]
[1756108842299,0.00503,111690.0,111680.0,0.08688475]
[1756108842511,0.0021,111690.0,111680.0,0.08888475]
[1756108842759,0.0021,111690.0,111680.0,0.08988475]
[1756108842994,0.0021,111690.0,111680.0,0.08888475]
[1756108843220,0.01416112,111690.0,111660.0,0.59368938]
[1756108843434,0.00503,111690.0,111680.0,0.013]
[1756108843656,0.00503,111690.0,111680.0,0.015]
[1756108844100,0.0021,111690.0,111680.0,0.013]
[1756108844756,0.0021,111690.0,111680.0,0.01]
[1756108844757,0.58860806,111690.0,111680.0,0.01]
[1756108844979,0.0021,111690.0,111680.0,0.02068847]
[1756108845114,0.0021,111690.0,111680.0,0.011]
[1756108845115,0.61512709,111690.0,111680.0,0.011]
[1756108845329,0.60605708,111690.0,111680.0,0.011]
[1756108845765,1.39964966,111690.0,111680.0,0.011]
[1756108845967,1.48940931,111690.0,111680.0,0.00675]
[1756108846209,1.65528931,111690.0,111680.0,0.00675]
[1756108846462,1.66355714,111690.0,111680.0,0.00775]
[1756108846593,1.66975841,111690.0,111680.0,0.00775]
[1756108846813,1.90961418,111690.0,111680.0,0.00775]
[1756108847024,1.90961418,111690.0,111680.0,0.00675]
[1756108847235,2.01853142,111690.0,111680.0,0.00675]
[1756108847441,2.02153142,111690.0,111680.0,0.00675]
[1756108847960,1.92153142,111690.0,111680.0,0.00675]
[1756108848170,1.92549142,111690.0,111680.0,0.00675]
[1756108848387,2.02549142,111690.0,111680.0,0.00675]
[1756108848790,1.92549142,111690.0,111680.0,0.00675]
[1756108849016,2.04451228,111690.0,111680.0,0.00675]
[1756108849284,2.05456028,111690.0,111680.0,0.00675]
[1756108849722,0.53654815,111670.0,111660.0,0.01004813]
[1756108849936,1.99665271,111670.0,111660.0,0.01004813]
[1756108850178,2.25883848,111670.0,111660.0,0.00856679]
[1756108850426,2.1012827,111670.0,111660.0,0.00856679]
[1756108850644,2.38113879,111670.0,111660.0,0.00856679]
[1756108850863,2.28113879,111670.0,111660.0,0.00856679]
[1756108851082,2.3671227,111670.0,111660.0,0.00856679]
[1756108851295,2.34233934,111670.0,111660.0,0.00856679]
[1756108851514,2.40811355,111670.0,111660.0,0.00856679]
[1756108851770,2.41211355,111670.0,111660.0,0.00856679]
[1756108852004,2.31210639,111670.0,111660.0,0.00856679]
[1756108852258,0.53658023,111650.0,111640.0,5e-05]
[1756108852476,2.05703607,111650.0,111640.0,5e-05]
[1756108852699,2.11878184,111650.0,111640.0,5e-05]
[1756108852934,2.28454184,111650.0,111640.0,5e-05]
[1756108853153,2.28458184,111650.0,111640.0,5e-05]
[1756108853375,6.84356584,111650.0,111640.0,5e-05]
[1756108853814,7.00936584,111650.0,111640.0,5e-05]
[1756108854044,1.30567136,111630.0,111620.0,5e-05]
[1756108854294,1.46689017,111630.0,111620.0,5e-05]
[1756108854519,1.63554017,111630.0,111620.0,5e-05]
[1756108854770,1.77544426,111630.0,111620.0,5e-05]
[1756108854996,1.68365611,111630.0,111620.0,5e-05]
[1756108855231,1.77544426,111630.0,111620.0,5e-05]
[1756108855467,1.78369425,111630.0,111620.0,5e-05]
[1756108855679,1.79771678,111630.0,111620.0,0.00105]
[1756108856118,1.72009428,111630.0,111620.0,0.01105]
[1756108856547,1.72828777,111630.0,111620.0,0.01105]
[1756108856767,0.87601971,111630.0,111620.0,0.01105]
[1756108856986,1.62828777,111630.0,111620.0,0.01105]
[1756108857194,1.56252777,111630.0,111620.0,0.01005]
[1756108857426,1.81515742,111630.0,111620.0,0.01005]
[1756108857627,1.64939742,111630.0,111620.0,0.01005]
[1756108857834,1.81511742,111630.0,111620.0,0.01005]
[1756108858337,1.81511742,111630.0,111620.0,0.01205]
[1756108859201,1.71511742,111630.0,111620.0,0.01205]
[1756108859417,1.81511742,111630.0,111620.0,0.01205]
[1756108860233,0.95089971,111630.0,111620.0,0.01205]
[1756108860436,1.53740777,111630.0,111620.0,0.01205]
[1756108860666,1.37457777,111630.0,111620.0,0.01205]
[1756108860874,1.49314085,111630.0,111620.0,0.01712]
[1756108861089,1.5057273,111630.0,111620.0,0.01275]
[1756108861296,1.02353791,111630.0,111620.0,0.01475]
[1756108861502,1.61005396,111630.0,111620.0,0.01475]
[1756108861702,1.61005396,111630.0,111620.0,0.01275]
[1756108862129,1.71298396,111630.0,111620.0,0.01275]
[1756108862543,1.75198396,111630.0,111620.0,0.01275]
[1756108863070,1.74905396,111630.0,111620.0,0.01275]
[1756108863288,1.58630396,111630.0,111620.0,0.01275]
[1756108863713,1.58337396,111630.0,111620.0,0.01275]
[1756108863922,1.75194396,111630.0,111620.0,0.01275]
[1756108864379,2.36924682,111630.0,111620.0,0.01275]
[1756108864590,1.78273876,111630.0,111620.0,0.01275]
[1756108866114,1.77973876,111630.0,111620.0,0.01275]
[1756108868052,1.77973876,111630.0,111620.0,0.0128]
[1756108868280,1.73983467,111630.0,111620.0,0.0128]
[1756108868927,1.64999502,111630.0,111620.0,0.0128]
[1756108869137,1.65291502,111630.0,111620.0,0.0128]
[1756108869781,1.65297237,111630.0,111620.0,0.0128]
[1756108869999,1.65299406,111630.0,111620.0,0.0128]
[1756108870432,1.48447406,111630.0,111620.0,0.0128]
[1756108870685,0.77124023,111630.0,111620.0,0.01787]
[1756108870911,1.52527829,111630.0,111620.0,0.01483]
[1756108871135,0.40109545,111660.0,111620.0,0.60437806]
[1756108871136,0.02389396,111660.0,111620.0,0.60437806]
[1756108871366,0.16556,111660.0,111630.0,0.00223954]
[1756108871600,0.06892,111680.0,111640.0,0.58650806]
[1756108871822,0.08788049,111680.0,111640.0,0.58650806]
[1756108872055,0.16552,111670.0,111650.0,0.5887472]
[1756108872253,0.16552,111670.0,111630.0,0.58650806]
[1756108872468,0.16552,111670.0,111660.0,0.07010163]
[1756108872692,0.06892,111680.0,111660.0,0.07010163]
[1756108872912,0.00891724,111690.0,111670.0,0.67339281]
[1756108873143,0.07360509,111700.0,111670.0,0.67339281]
[1756108873359,0.16552,111690.0,111670.0,0.67339281]
[1756108873596,0.06892,111700.0,111680.0,0.07110163]
[1756108873823,0.01899679,111700.0,111690.0,0.08688475]
[1756108874040,0.15260695,111700.0,111690.0,0.08688475]
[1756108874270,0.15260695,111700.0,111680.0,0.07110163]
[1756108874503,0.73911501,111700.0,111680.0,0.15798638]
[1756108874731,0.15260695,111700.0,111680.0,0.17378502]
[1756108874952,0.15260695,111700.0,111690.0,0.004]
[1756108875176,0.17005597,111700.0,111690.0,0.004]
[1756108875397,0.18292902,111700.0,111680.0,0.17378502]
[1756108875639,0.18292902,111700.0,111680.0,0.17778502]
[1756108875879,0.18292902,111700.0,111680.0,0.17578502]
[1756108876983,0.68809445,111710.0,111680.0,0.17578502]
[1756108877178,0.16548,111700.0,111680.0,0.17578502]
[1756108877401,0.16548,111700.0,111690.0,0.005]
[1756108877634,0.16548,111700.0,111680.0,0.17578502]
[1756108878089,0.16548,111700.0,111680.0,0.18078502]
[1756108878344,0.68809445,111710.0,111680.0,0.17378502]
[1756108878577,0.16536,111700.0,111690.0,0.007]
[1756108878994,0.16536,111700.0,111680.0,0.17378502]
[1756108879224,0.16536,111700.0,111680.0,0.17878502]
[1756108879448,0.66439458,111710.0,111680.0,0.18078502]
[1756108879689,0.16536,111700.0,111680.0,0.18078502]
[1756108879899,1.00439458,111710.0,111680.0,0.18078502]
[1756108880130,0.16536,111700.0,111680.0,0.18078502]
[1756108880360,0.75186806,111700.0,111680.0,0.18078502]
[1756108880586,0.01744902,111690.0,111680.0,0.002]
[1756108880853,0.94912708,111690.0,111680.0,0.012]
[1756108881078,0.94912708,111690.0,111680.0,0.01]
[1756108881517,1.21507889,111690.0,111680.0,0.016]
[1756108881944,1.21507889,111690.0,111680.0,0.01]
[1756108882173,1.21507889,111690.0,111680.0,0.016]
[1756108882174,0.44950377,111690.0,111680.0,0.016]
[1756108882397,1.20129183,111690.0,111680.0,0.01905]
[1756108882613,1.20129183,111690.0,111680.0,0.01305]
[1756108882821,1.20129183,111690.0,111680.0,0.01005]
[1756108883031,1.11440708,111690.0,111680.0,0.01005]
[1756108883518,1.38035889,111690.0,111680.0,0.01005]
[1756108884404,1.46722854,111690.0,111680.0,0.01205]
[1756108884618,1.38035889,111690.0,111680.0,0.01205]
[1756108884833,1.49686686,111690.0,111680.0,0.01005]
[1756108885061,1.49686686,111690.0,111680.0,0.01305]
[1756108885062,1.72039818,111690.0,111680.0,0.01305]
[1756108885323,1.76133666,111690.0,111680.0,0.01105]
[1756108885796,1.49605666,111690.0,111680.0,0.01205]
[1756108886021,1.63633066,111690.0,111680.0,0.01005]
[1756108886480,1.71594722,111690.0,111680.0,0.01005]
[1756108886698,1.72419859,111690.0,111680.0,0.01005]
[1756108887119,1.71594722,111690.0,111680.0,0.01005]
[1756108887396,1.71394722,111690.0,111680.0,0.01005]
[1756108887595,1.72119788,111690.0,111680.0,0.01005]
[1756108887826,1.82319788,111690.0,111680.0,0.01005]
[1756108888045,1.82319788,111690.0,111680.0,0.01205]
[1756108888046,1.65102146,111690.0,111680.0,0.01205]
[1756108888274,1.64902146,111690.0,111680.0,0.01205]
[1756108888504,0.97560375,111690.0,111680.0,0.01205]
[1756108888746,1.46211181,111690.0,111680.0,0.01205]
[1756108888975,1.46211181,111690.0,111680.0,0.01005]
[1756108889185,0.53141669,111690.0,111680.0,0.01105]
[1756108889402,0.88345215,111690.0,111680.0,0.01105]
[1756108889624,0.86943816,111690.0,111680.0,0.01105]
[1756108890051,0.2777601,111690.0,111680.0,0.01105]
[1756108890475,0.6177601,111690.0,111680.0,0.01105]
[1756108890677,1.03914816,111690.0,111680.0,0.01105]
[1756108890886,1.20939816,111690.0,111680.0,0.01005]
[1756108891118,1.06176718,111690.0,111680.0,0.01305]
[1756108891337,1.22584718,111690.0,111680.0,0.01305]
[1756108891762,0.63933912,111690.0,111680.0,0.01405]
[1756108891984,0.54728437,111690.0,111680.0,0.01405]
[1756108892414,0.38220437,111690.0,111680.0,0.01405]
[1756108892633,0.53903371,111690.0,111680.0,0.01405]
[1756108893308,0.18158469,111690.0,111680.0,0.01405]
[1756108893985,0.16508,111690.0,111680.0,0.01405]
[1756108894198,0.18158323,111690.0,111680.0,0.01405]
[1756108895066,0.18158581,111690.0,111680.0,0.01405]
[1756108895304,0.77326387,111690.0,111680.0,0.01405]
[1756108895720,0.76809387,111690.0,111680.0,0.01405]
[1756108895960,0.18158581,111690.0,111680.0,0.01405]
[1756108896194,1.10801387,111690.0,111680.0,0.01405]
[1756108896422,0.52150581,111690.0,111680.0,0.01405]
[1756108896658,0.52150581,111690.0,111680.0,0.10093475]
[1756108896659,0.01650581,111690.0,111680.0,0.10093475]
[1756108896893,0.18150581,111690.0,111680.0,0.24123341]
[1756108897120,0.165,111690.0,111680.0,0.24123341]
[1756108897353,0.18152456,111690.0,111680.0,0.17203638]
[1756108897575,0.165,111690.0,111680.0,0.17103638]
[1756108898242,0.165,111690.0,111680.0,0.17603638]
[1756108899384,0.1815515,111690.0,111680.0,0.17603638]
[1756108900266,1.12165459,111690.0,111680.0,0.01805]
[1756108900684,0.53514641,111690.0,111680.0,0.01805]
[1756108900897,1.12165447,111690.0,111680.0,0.01805]
[1756108901756,0.52971641,111690.0,111680.0,0.01805]
[1756108903061,0.36483641,111690.0,111680.0,0.10493475]
[1756108903273,0.52971641,111690.0,111680.0,0.11588097]
[1756108903486,0.52971641,111690.0,111680.0,0.10493475]
[1756108903920,0.52145739,111690.0,111680.0,0.10493475]
[1756108904356,0.53505601,111690.0,111680.0,0.01805]
[1756108904607,1.12156407,111690.0,111680.0,0.01805]
[1756108904838,1.13901168,111690.0,111680.0,0.01805]
[1756108905293,1.31807874,111690.0,111680.0,0.01805]
[1756108905744,1.13901168,111690.0,111680.0,0.01805]
[1756108907471,0.55242362,111690.0,111680.0,0.01805]
[1756108907686,1.13893168,111690.0,111680.0,0.01805]